bitfinex-derivatives/quotes_SOLF0:USTF0_20250719
["timestamp","ask_amount","ask_price","bid_price","bid_amount"]
[1752933546615,5.6296,177.54,177.51,3.11]
[1752933546817,8.7896,177.54,177.5,5.6307]
[1752933547011,8.7896,177.54,177.52,3.11]
[1752933547213,8.7896,177.54,177.53,3.11]
[1752933547617,3.16,177.54,177.53,3.11]
[1752933547917,3.16,177.58,177.53,3.11]
[1752933548216,8.7892,177.56,177.53,3.11]
[1752933548717,5.55190441,177.58,177.53,3.11]
[1752933548917,3.16,177.57,177.53,3.11]
[1752933550020,3.16,177.56,177.53,3.11]
[1752933550214,3.16,177.56,177.54,3.11]
[1752933550416,8.7893,177.55,177.54,3.11]
[1752933550620,8.7893,177.55,177.51,5.6303]
[1752933550920,8.7893,177.55,177.54,3.11]
[1752933551321,140.1879328,177.59,177.52,3.11]
[1752933551322,3.16,177.53,177.52,3.11]
[1752933551916,3.16,177.52,177.48,3.11]
[1752933552116,3.16,177.5,177.46,3.11]
[1752933552317,3.16,177.5,177.47,5.6318]
[1752933552609,3.16,177.5,177.49,3.11]
[1752933553611,8.7909,177.5,177.49,3.11]
[1752933556122,3.16,177.48,177.47,3.11]
[1752933556622,8.7915,177.48,177.47,3.11]
[1752933556824,3.16,177.48,177.42,3.11]
[1752933557019,3.16,177.46,177.42,3.11]
[1752933557328,8.7923,177.46,177.44,3.11]
[1752933557923,8.7924,177.45,177.44,3.11]
[1752933558627,5.6323,177.46,177.45,3.11]
[1752933558827,8.7923,177.46,177.45,3.11]
[1752933559420,8.02380441,177.47,177.46,3.11]
[1752933561626,2.39190441,177.47,177.46,3.11]
[1752933561828,2.39190441,177.49,177.46,3.11]
[1752933562531,11.16330441,177.49,177.46,3.11]
[1752933562923,5.53190441,177.49,177.46,8.7419]
[1752933563225,2.39190441,177.49,177.47,3.21]
[1752933563624,8.7709,177.5,177.47,3.21]
[1752933563826,2.39190441,177.51,177.48,3.21]
[1752933564026,5.53190441,177.51,177.48,3.21]
[1752933564433,8.02270441,177.51,177.49,3.21]
[1752933564631,3.14,177.5,177.49,3.21]
[1752933564828,8.7709,177.5,177.49,3.21]
[1752933565731,3.14,177.48,177.47,3.21]
[1752933566728,8.02310441,177.49,177.47,3.21]
[1752933566934,2.39190441,177.51,177.47,3.21]
[1752933567134,2.39190441,177.51,177.42,7.12432203]
[1752933567434,2.39190441,177.51,177.48,3.21]
[1752933567735,2.39190441,177.51,177.48,8.8413]
[1752933567931,2.39190441,177.53,177.49,3.21]
[1752933568130,5.53190441,177.55,177.49,3.21]
[1752933568333,11.16130441,177.55,177.51,5.6305]
[1752933568529,11.16130441,177.55,177.52,3.21]
[1752933568734,8.02130441,177.55,177.52,3.21]
[1752933569134,5.6297,177.54,177.52,3.21]
[1752933569332,3.14,177.54,177.48,3.21]
[1752933569532,3.14,177.54,177.5,3.21]
[1752933569730,140.1879328,177.59,177.51,3.21]
[1752933569731,2.39190441,177.53,177.51,3.21]
[1752933570033,3.14,177.52,177.46,4.73241762]
[1752933570239,8.7707,177.51,177.5,3.21]
[1752933570435,3.14,177.5,177.48,3.21]
[1752933570635,3.14,177.49,177.48,3.21]
[1752933570832,5.631,177.5,177.48,7.63931514]
[1752933571033,8.771,177.5,177.49,3.21]
[1752933571234,5.6314,177.49,177.45,8.8423]
[1752933571432,3.14,177.48,177.47,3.21]
[1752933571636,3.14,177.48,177.47,7.63978732]
[1752933573034,5.6314,177.49,177.47,7.63978732]
[1752933573238,3.14,177.49,177.48,7.63978732]
[1752933573438,5.631,177.5,177.48,7.63978732]
[1752933573739,8.771,177.5,177.49,3.21]
[1752933576941,3.14,177.49,177.47,3.21]
[1752933577240,3.14,177.49,177.48,7.64712192]
[1752933577633,8.7712,177.49,177.48,7.64712192]
[1752933578338,8.7712,177.49,177.48,3.21]
[1752933579345,5.6321,177.47,177.42,4.73241762]
[1752933579541,5.6321,177.47,177.46,3.21]
[1752933579941,8.7721,177.47,177.46,3.21]
[1752933582146,3.14,177.47,177.42,3.21]
[1752933582447,5.53190441,177.46,177.45,3.21]
[1752933583149,11.16400441,177.46,177.45,3.21]
[1752933586054,8.7721,177.46,177.45,3.21]
[1752933586347,5.6321,177.46,177.45,3.21]
[1752933586547,8.7721,177.46,177.45,3.21]
[1752933586951,5.6321,177.46,177.45,3.21]
[1752933587952,8.7721,177.46,177.45,3.21]
[1752933589152,5.6321,177.46,177.45,3.21]
[1752933589751,106.96,177.53,177.45,3.21]
[1752933590052,2.39190441,177.53,177.45,3.21]
[1752933590251,5.53190441,177.53,177.46,6.82815699]
[1752933590451,5.53190441,177.53,177.47,7.59622353]
[1752933590659,5.6306,177.51,177.48,3.16]
[1752933590953,8.9306,177.51,177.48,3.16]
[1752933592149,5.6303,177.52,177.48,3.16]
[1752933592349,8.9303,177.52,177.48,3.16]
[1752933595559,5.6307,177.51,177.48,3.16]
[1752933595758,3.3,177.5,177.48,3.16]
[1752933596352,3.3,177.5,177.46,3.16]
[1752933596559,3.3,177.49,177.48,3.16]
[1752933596759,3.3,177.49,177.48,7.60102366]
[1752933596951,5.6309,177.5,177.48,7.60102366]
[1752933597151,3.3,177.55,177.49,3.16]
[1752933597361,3.3,177.55,177.51,3.16]
[1752933597659,8.02590441,177.56,177.48,3.14742799]
[1752933597860,3.3,177.55,177.49,4.441286]
[1752933598058,3.3,177.55,177.5,4.441286]
[1752933598256,3.3,177.52,177.51,4.441286]
[1752933598558,3.3,177.54,177.51,4.441286]
[1752933598760,3.3,177.54,177.47,7.13108021]
[1752933598958,3.3,177.54,177.5,5.6308]
[1752933599156,3.3,177.57,177.51,4.44078437]
[1752933599361,5.6292,177.56,177.52,4.44078437]
[1752933599556,5.6292,177.56,177.49,2.39190441]
[1752933599557,8.9292,177.56,177.53,4.44078437]
[1752933599757,3.3,177.55,177.49,7.13108021]
[1752933599951,5.6292,177.56,177.5,4.43965715]
[1752933600150,8.9292,177.56,177.52,5.63]
[1752933600351,8.9287,177.57,177.54,3.16]
[1752933600554,5.6287,177.57,177.54,3.16]
[1752933601460,3.3,177.6,177.54,3.16]
[1752933601658,3.3,177.6,177.56,3.16]
[1752933601858,5.6282,177.59,177.56,3.16]
[1752933602062,3.3,177.58,177.54,5.6294]
[1752933602261,3.3,177.58,177.57,3.16]
[1752933604259,8.9283,177.58,177.57,3.16]
[1752933605259,3.3,177.58,177.52,3.16]
[1752933605462,3.3,177.58,177.54,3.16]
[1752933605664,3.3,177.56,177.54,3.16]
[1752933605862,3.3,177.56,177.52,3.16]
[1752933606055,3.3,177.56,177.5,3.16]
[1752933606258,3.3,177.56,177.52,3.16]
[1752933606462,3.3,177.53,177.52,3.16]
[1752933606764,3.3,177.53,177.51,3.16]
[1752933607067,3.3,177.52,177.51,3.16]
[1752933608164,8.9302,177.52,177.51,3.16]
[1752933610162,5.6302,177.52,177.49,3.16]
[1752933610468,3.3,177.51,177.5,7.58798004]
[1752933611161,2.39190441,177.57,177.51,3.16]
[1752933611364,3.3,177.56,177.51,3.16]
[1752933611565,5.6293,177.55,177.51,3.16]
[1752933611971,5.629,177.56,177.53,3.16]
[1752933612267,3.3,177.58,177.53,3.16]
[1752933612459,5.629,177.56,177.53,8.7896]
[1752933612659,3.3,177.58,177.54,3.16]
[1752933613066,5.6288,177.57,177.54,5.6295]
[1752933613265,5.6288,177.57,177.5,4.7391758]
[1752933613266,9.45332005,177.71,177.56,2.39190441]
[1752933613463,3.3,177.66,177.6,3.16]
[1752933613668,5.6263,177.65,177.63,3.16]
[1752933614067,3.3,177.66,177.63,3.16]
[1752933614368,3.3,177.74,177.63,2.39190441]
[1752933614568,5.69190441,177.72,177.65,2.39190441]
[1752933614767,2.39190441,177.72,177.66,3.16]
[1752933614962,3.3,177.7,177.66,3.16]
[1752933615163,3.3,177.72,177.66,3.16]
[1752933615360,3.3,177.74,177.68,3.16]
[1752933615563,20.69442005,177.83,177.69,2.39190441]
[1752933615564,2.39190441,177.76,177.69,2.39190441]
[1752933615768,5.6235,177.74,177.7,3.16]
[1752933616064,17.47922446,177.84,177.7,3.16]
[1752933616065,8.02590441,177.84,177.71,2.39190441]
[1752933616265,3.3,177.83,177.73,3.16]
[1752933616470,8.02590441,177.84,177.74,3.16]
[1752933616471,3.3,177.8,177.74,3.16]
[1752933616663,2.39190441,177.77,177.75,3.16]
[1752933616862,3.3,177.78,177.71,3.16]
[1752933617070,3.3,177.78,177.72,3.16]
[1752933617366,3.3,177.82,177.76,3.16]
[1752933617772,3.3,177.8,177.74,3.16]
[1752933617972,3.3,177.78,177.74,3.16]
[1752933618167,3.3,177.85,177.77,2.39190441]
[1752933618370,3.3,177.85,177.78,3.16]
[1752933619267,3.3,177.89,177.84,3.16]
[1752933619468,105.96,177.98,177.85,2.39190441]
[1752933619667,2.39190441,177.91,177.86,3.16]
[1752933619870,2.39190441,177.87,177.83,3.16]
[1752933620071,3.3,177.84,177.8,3.16]
[1752933620273,3.08,177.82,177.8,3.16]
[1752933620468,8.701,177.82,177.75,8.01480441]
[1752933620670,3.08,177.82,177.76,3.17]
[1752933621566,5.6218,177.79,177.76,3.17]
[1752933622368,3.89778362,177.81,177.72,3.17]
[1752933622573,3.08,177.8,177.72,3.17]
[1752933622874,5.6222,177.78,177.72,8.7937]
[1752933623074,3.08,177.83,177.73,3.17]
[1752933623277,3.89778362,177.82,177.73,3.17]
[1752933623477,5.6219,177.79,177.73,8.7935]
[1752933623675,5.6219,177.79,177.74,3.17]
[1752933624270,5.6219,177.79,177.75,3.17]
[1752933625680,5.6214,177.8,177.75,3.17]
[1752933626074,8.7014,177.8,177.75,3.17]
[1752933626576,5.6214,177.8,177.75,3.17]
[1752933627584,5.6211,177.81,177.75,3.17]
[1752933627880,5.6211,177.81,177.76,3.17]
[1752933628081,5.6214,177.8,177.76,3.17]
[1752933629179,8.7014,177.8,177.76,3.17]
[1752933629381,5.6218,177.79,177.76,3.17]
[1752933629780,6.97778362,177.8,177.76,3.17]
[1752933630287,3.08,177.79,177.7,3.17]
[1752933630488,3.08,177.79,177.72,3.17]
[1752933631284,8.702,177.79,177.74,3.17]
[1752933632680,5.6221,177.78,177.74,3.17]
[1752933632882,3.08,177.79,177.74,3.17]
[1752933633087,3.08,177.86,177.75,3.17]
[1752933633292,3.08,177.84,177.76,3.17]
[1752933633591,3.08,177.82,177.76,3.17]
[1752933633891,3.08,177.81,177.77,3.17]
[1752933634488,8.7011,177.81,177.77,5.6223]
[1752933634894,8.7011,177.81,177.79,3.17]
[1752933635782,3.08,177.81,177.78,3.17]
[1752933635984,3.08,177.81,177.74,3.17]
[1752933636390,3.89778362,177.8,177.74,3.17]
[1752933636590,3.08,177.78,177.74,3.17]
[1752933636786,9.51908362,177.81,177.74,3.17]
[1752933636993,6.97778362,177.81,177.74,3.17]
[1752933637293,3.08,177.81,177.74,3.17]
[1752933637990,3.08,177.81,177.79,3.17]
[1752933639094,3.08,177.8,177.79,3.17]
[1752933640196,3.89778362,177.83,177.79,3.17]
[1752933640393,3.08,177.82,177.79,5.6215]
[1752933640700,3.08,177.82,177.81,3.17]
[1752933641196,3.08,177.84,177.78,3.17]
[1752933641395,3.89778362,177.88,177.78,3.17]
[1752933641396,8.6997,177.86,177.78,3.17]
[1752933642101,3.08,177.85,177.82,3.17]
[1752933642394,3.08,177.85,177.84,3.17]
[1752933642601,8.6998,177.85,177.84,3.17]
[1752933642793,3.08,177.85,177.84,3.17]
[1752933642998,8.6993,177.87,177.84,3.17]
[1752933643192,6.97778362,177.88,177.79,3.89778362]
[1752933643497,8.6991,177.88,177.84,3.17]
[1752933643998,8.6991,177.88,177.76,105.24]
[1752933643999,3.08,177.88,177.86,3.17]
[1752933644395,3.08,177.88,177.83,5.6202]
[1752933644589,3.08,177.9,177.84,3.17]
[1752933644992,3.08,177.9,177.84,5.62]
[1752933645193,3.08,177.9,177.84,3.17]
[1752933645393,3.08,177.87,177.85,3.17]
[1752933645600,3.08,177.86,177.85,3.17]
[1752933645996,3.08,177.87,177.86,3.17]
[1752933647198,8.6992,177.87,177.86,3.17]
[1752933647392,8.6992,177.87,177.81,2.39011492]
[1752933647393,5.6192,177.87,177.81,2.39011492]
[1752933647600,3.08,177.85,177.84,3.17]
[1752933647799,3.08,177.9,177.84,3.17]
[1752933648097,3.08,177.88,177.85,3.17]
[1752933648295,3.08,177.86,177.85,3.17]
[1752933649398,150.4340748,177.93,177.83,3.17]
[1752933649399,156.0680748,177.93,177.83,3.17]
[1752933649598,3.08,177.88,177.83,3.17]
[1752933649800,3.08,177.87,177.83,8.7902]
[1752933650099,3.08,177.87,177.84,3.17]
[1752933650297,3.08,177.87,177.84,5.6198]
[1752933650498,5.42011492,177.89,177.85,3.09]
[1752933650697,3.03,177.88,177.85,3.09]
[1752933651203,3.03,177.88,177.86,3.09]
[1752933651405,11.03871492,177.89,177.86,3.09]
[1752933652306,3.03,177.88,177.78,3.09]
[1752933652503,3.03,177.88,177.81,3.09]
[1752933652708,8.649,177.88,177.84,5.6199]
[1752933652904,3.03,177.88,177.85,3.09]
[1752933653311,5.6192,177.87,177.83,5.6201]
[1752933653607,8.6492,177.87,177.84,3.09]
[1752933654109,3.03,177.87,177.84,3.09]
[1752933654406,8.6493,177.87,177.84,3.09]
[1752933654602,2.39011492,177.89,177.83,5.6201]
[1752933654808,3.03,177.86,177.84,3.09]
[1752933655208,2.39011492,177.85,177.8,5.6211]
[1752933655409,2.39011492,177.85,177.81,3.09]
[1752933655410,3.03,177.84,177.81,3.09]
[1752933655910,5.62,177.85,177.82,3.09]
[1752933656102,8.65,177.85,177.82,3.09]
[1752933657401,5.42011492,177.89,177.84,3.09]
[1752933657601,3.03,177.88,177.84,3.09]
[1752933657813,5.6187,177.89,177.84,3.09]
[1752933658007,3.03,177.91,177.84,5.48011492]
[1752933658204,3.03,177.91,177.85,4.39788701]
[1752933658407,3.03,177.91,177.86,7.48788701]
[1752933658609,3.03,177.9,177.88,3.09]
[1752933658808,2.39011492,177.92,177.84,2.39011492]
[1752933659008,5.6184,177.9,177.86,3.09]
[1752933659214,3.03,177.91,177.88,3.09]
[1752933659410,3.03,177.91,177.89,4.40313258]
[1752933659708,5.6179,177.91,177.9,3.09]
[1752933659910,2.39011492,177.93,177.91,3.09]
[1752933660112,3.03,177.9,177.89,3.09]
[1752933660305,3.03,177.9,177.85,4.67151275]
[1752933660306,3.03,177.9,177.85,3.09]
[1752933660510,3.03,177.9,177.84,4.67151275]
[1752933660511,3.03,177.85,177.81,3.09]
[1752933660713,3.03,177.81,177.79,7.76151275]
[1752933660908,2.39011492,177.8,177.77,3.09]
[1752933661110,11.04231492,177.78,177.77,3.09]
[1752933661310,11.04231492,177.78,177.77,4.42044037]
[1752933661717,3.03,177.73,177.72,4.67151275]
[1752933662015,3.03,177.72,177.68,218.4200118]
[1752933662213,5.6248,177.7,177.68,213.74849905]
[1752933662414,3.03,177.69,177.68,213.74849905]
[1752933662615,5.42011492,177.71,177.68,216.83849905]
[1752933662816,3.03,177.7,177.68,216.83849905]
[1752933664119,3.03,177.74,177.69,3.09]
[1752933664720,5.623,177.75,177.69,5.6247]
[1752933664912,3.03,177.73,177.71,3.09]
[1752933665315,3.03,177.72,177.71,3.09]
[1752933665715,3.03,177.74,177.71,3.09]
[1752933666018,3.03,177.73,177.71,8.7141]
[1752933666313,3.03,177.84,177.72,3.09]
[1752933666509,3.03,177.79,177.74,5.623]
[1752933666709,3.03,177.77,177.75,3.09]
[1752933666908,3.90278929,177.8,177.75,3.09]
[1752933666909,5.6221,177.78,177.75,3.09]
[1752933667110,3.03,177.79,177.74,3.09]
[1752933667316,3.03,177.79,177.71,3.09]
[1752933667918,5.622,177.78,177.71,3.09]
[1752933668118,8.652,177.78,177.71,3.09]
[1752933668917,5.622,177.78,177.74,5.623]
[1752933669224,3.03,177.77,177.75,3.09]
[1752933669721,3.03,177.77,177.75,8.7129]
[1752933670222,3.03,177.84,177.77,3.09]
[1752933671016,3.03,177.82,177.74,3.09]
[1752933671217,5.6217,177.79,177.75,5.6227]
[1752933671532,3.03,177.77,177.76,3.09]
[1752933672526,3.03,177.76,177.72,3.09]
[1752933672725,3.03,177.76,177.74,3.09]
[1752933673024,3.03,177.76,177.75,3.09]
[1752933673421,8.652,177.78,177.75,3.09]
[1752933673622,3.03,177.79,177.76,3.09]
[1752933673822,3.03,177.79,177.74,3.09]
[1752933674122,3.03,177.79,177.77,3.09]
[1752933674826,8.6517,177.79,177.77,3.09]
[1752933675025,3.03,177.78,177.77,3.09]
[1752933676428,8.652,177.78,177.75,8.7128]
[1752933676624,3.03,177.77,177.76,3.09]
[1752933677421,3.03,177.76,177.69,3.09]
[1752933677726,3.03,177.74,177.7,3.09]
[1752933677931,3.03,177.71,177.66,3.09]
[1752933678127,3.03,177.71,177.67,4.39200272]
[1752933678322,3.03,177.71,177.7,3.09]
[1752933680531,3.31,177.74,177.67,5.6253]
[1752933680736,3.31,177.69,177.67,5.6253]
[1752933680932,3.31,177.68,177.66,5.6257]
[1752933681233,3.31,177.68,177.67,3.03]
[1752933682732,3.31,177.7,177.65,3.03]
[1752933684231,8.9343,177.71,177.69,3.03]
[1752933684434,8.9343,177.71,177.68,5.6249]
[1752933684435,8.9343,177.71,177.7,3.03]
[1752933684630,8.9343,177.71,177.68,8.6549]
[1752933684830,3.31,177.7,177.69,3.03]
[1752933686232,3.31,177.7,177.63,3.03]
[1752933686631,5.6251,177.69,177.65,5.6259]
[1752933686837,3.31,177.68,177.67,3.03]
[1752933687232,5.634,177.8,177.67,3.03]
[1752933687537,3.31,177.75,177.67,3.03]
[1752933688329,3.31,177.71,177.69,3.03]
[1752933688633,3.31,177.73,177.65,3.03]
[1752933689636,3.31,177.73,177.67,3.03]
[1752933690139,3.31,177.73,177.68,3.90278929]
[1752933690334,3.31,177.73,177.69,3.03]
[1752933691633,3.31,177.75,177.69,3.03]
[1752933691833,3.31,177.77,177.73,3.03]
[1752933692433,3.31,177.77,177.76,5.6226]
[1752933692733,3.31,177.77,177.76,8.6526]
[1752933692938,3.31,177.77,177.76,3.03]
[1752933693141,3.31,177.77,177.72,3.90278929]
[1752933693334,3.90278929,177.82,177.74,3.03]
[1752933693537,3.31,177.75,177.74,3.03]
[1752933694642,3.31,177.75,177.74,8.6533]
[1752933694938,3.31,177.74,177.7,3.90278929]
[1752933695138,3.31,177.74,177.73,3.03]
[1752933695934,5.6229,177.76,177.73,5.6235]
[1752933696238,3.31,177.75,177.74,3.03]
[1752933698537,8.933,177.75,177.74,3.03]
[1752933698744,3.31,177.79,177.71,3.03]
[1752933698943,2.39321749,177.78,177.71,3.03]
[1752933699141,3.31,177.73,177.71,5.624]
[1752933699344,3.31,177.77,177.7,3.03]
[1752933699741,3.31,177.73,177.71,8.654]
[1752933700045,3.31,177.73,177.72,3.03]
[1752933700947,3.31,177.75,177.72,3.03]
[1752933701444,3.31,177.75,177.73,5.6234]
[1752933701648,3.31,177.75,177.74,3.03]
[1752933701846,3.31,177.74,177.73,3.03]
[1752933702049,3.31,177.74,177.71,3.03]
[1752933702548,5.6235,177.74,177.71,3.03]
[1752933702848,3.31,177.72,177.71,8.654]
[1752933703045,3.31,177.72,177.69,5.42321749]
[1752933703248,3.31,177.72,177.7,4.40065249]
[1752933703547,2.39321749,177.77,177.7,3.03]
[1752933703548,3.31,177.71,177.7,3.03]
[1752933703849,3.31,177.71,177.7,7.43423139]
[1752933704045,3.31,177.71,177.7,13.05873139]
[1752933704848,3.31,177.71,177.7,7.43423139]
[1752933705150,3.31,177.71,177.7,4.40423139]
[1752933706047,3.31,177.73,177.7,4.40423139]
[1752933706246,3.31,177.73,177.72,3.03]
[1752933706448,3.31,177.73,177.72,7.43977322]
[1752933707050,3.31,177.75,177.72,4.40977322]
[1752933707258,3.31,177.78,177.73,7.43977322]
[1752933707556,3.31,177.78,177.73,3.03]
[1752933707858,3.31,177.74,177.71,3.03]
[1752933708047,3.31,177.74,177.72,4.41034275]
[1752933708250,3.31,177.73,177.69,3.03]
[1752933708445,2.39321749,177.77,177.7,7.44113023]
[1752933708653,3.31,177.72,177.71,4.41113023]
[1752933709357,8.9339,177.72,177.71,4.41113023]
[1752933709852,3.31,177.72,177.68,3.03]
[1752933710058,3.31,177.69,177.68,3.03]
[1752933710357,3.31,177.69,177.68,7.44164978]
[1752933710557,3.31,177.69,177.68,4.41164978]
[1752933710757,8.9349,177.69,177.68,4.41164978]
[1752933711853,3.31,177.69,177.68,7.71164978]
[1752933712156,2.39321749,177.73,177.68,4.41164978]
[1752933712347,3.3,177.7,177.69,3.3]
[1752933712550,3.3,177.72,177.67,3.3]
[1752933712748,3.3,177.72,177.68,4.41095602]
[1752933712957,3.3,177.72,177.67,3.3]
[1752933713158,5.6248,177.7,177.68,4.41095661]
[1752933713359,3.3,177.69,177.68,3.3]
[1752933713561,3.3,177.69,177.68,7.71063601]
[1752933713860,8.9249,177.69,177.68,4.41063601]
[1752933716760,5.6246,177.7,177.68,7.71063601]
[1752933717059,3.3,177.7,177.69,3.3]
[1752933717260,3.3,177.72,177.69,7.71102468]
[1752933717557,3.3,177.7,177.66,104.22]
[1752933717755,3.3,177.7,177.67,7.71092562]
[1752933718059,8.9249,177.69,177.68,4.41092562]
[1752933719962,5.6255,177.67,177.66,104.22]
[1752933720266,3.3,177.67,177.66,108.63186772]
[1752933720565,3.3,177.67,177.66,7.71186772]
[1752933720960,2.39321749,177.71,177.66,7.71186772]
[1752933721168,3.3,177.68,177.67,7.71307575]
[1752933721362,3.3,177.68,177.67,4.41307575]
[1752933721769,5.6252,177.68,177.65,3.3]
[1752933721965,3.3,177.67,177.66,7.71277824]
[1752933722164,3.3,177.73,177.67,3.3]
[1752933722361,3.3,177.75,177.72,3.3]
[1752933722865,138.66117285,177.8,177.7,2.39321749]
[1752933722866,2.39321749,177.77,177.71,3.3]
[1752933723167,3.3,177.76,177.72,4.41259321]
[1752933723470,5.6239,177.72,177.69,109.7647]
[1752933723673,3.3,177.71,177.7,4.41275657]
[1752933723871,3.3,177.74,177.71,3.3]
[1752933724073,3.3,177.76,177.73,3.3]
[1752933724266,3.3,177.75,177.74,3.3]
[1752933724473,3.3,177.79,177.74,3.3]
[1752933724867,3.3,177.79,177.75,3.3]
[1752933725070,3.3,177.79,177.73,3.3]
[1752933725270,3.3,177.79,177.75,8.9227]
[1752933725271,5.6223,177.78,177.75,8.9227]
[1752933725476,3.3,177.77,177.76,3.3]
[1752933726977,8.9223,177.77,177.76,3.3]
[1752933727375,3.3,177.79,177.75,3.3]
[1752933727676,3.3,177.78,177.77,3.3]
[1752933728273,8.922,177.78,177.77,3.3]
[1752933728778,138.66117285,177.8,177.77,3.3]
[1752933728971,3.3,177.79,177.76,3.3]
[1752933729172,138.66117285,177.8,177.73,2.39321749]
[1752933729373,138.66117285,177.8,177.75,3.3]
[1752933729573,8.922,177.78,177.77,3.3]
[1752933730679,3.3,177.79,177.75,3.3]
[1752933731277,3.3,177.76,177.75,3.3]
[1752933733681,5.6226,177.77,177.75,3.3]
[1752933733882,8.9226,177.77,177.76,3.3]
[1752933735586,3.3,177.77,177.76,3.3]
[1752933736879,3.3,177.76,177.75,3.3]
[1752933737074,3.3,177.76,177.74,3.3]
[1752933737389,3.3,177.76,177.72,3.3]
[1752933737882,3.3,177.73,177.72,3.3]
[1752933738085,3.3,177.73,177.72,7.70742019]
[1752933738284,3.3,177.73,177.72,3.3]
[1752933738583,3.3,177.73,177.72,7.70785443]
[1752933738775,5.6231,177.75,177.72,4.40785443]
[1752933738979,5.6231,177.75,177.73,3.3]
[1752933739585,3.3,177.74,177.73,3.3]
[1752933739779,5.6231,177.75,177.7,3.3]
[1752933740077,2.39321749,177.77,177.69,2.39321749]
[1752933740078,5.6234,177.74,177.71,7.70802295]
[1752933740278,3.3,177.72,177.71,3.3]
[1752933740479,3.3,177.72,177.71,4.40820682]
[1752933740685,3.3,177.72,177.67,3.28]
[1752933740884,3.3,177.72,177.68,4.40835829]
[1752933741086,3.3,177.72,177.66,107.3]
[1752933741286,5.6248,177.7,177.67,4.4086731]
[1752933741483,3.14,177.69,177.68,4.4086731]
[1752933741677,3.14,177.69,177.68,7.6886731]
[1752933742982,3.14,177.69,177.68,4.4086731]
[1752933743685,8.7649,177.69,177.68,4.4086731]
[1752933743889,3.14,177.69,177.67,3.28]
[1752933744090,3.14,177.69,177.68,3.28]
[1752933744284,8.7649,177.69,177.68,3.28]
[1752933744484,5.6249,177.69,177.66,109.6455]
[1752933744682,2.39321749,177.71,177.68,3.28]
[1752933744889,3.14,177.69,177.68,3.28]
[1752933745886,2.39321749,177.73,177.68,3.28]
[1752933746087,3.14,177.71,177.68,3.28]
[1752933746393,3.14,177.71,177.68,5.625]
[1752933746588,3.14,177.71,177.7,3.28]
[1752933746784,3.14,177.71,177.67,3.28]
[1752933747088,3.14,177.68,177.67,3.28]
[1752933747288,3.14,177.68,177.67,7.68736192]
[1752933747489,3.14,177.68,177.67,4.40736192]